[Event "41st Jacques-Lemans-Open 2022"]
[Site "St. Veit/Glan"]
[Date "2022.07.11"]
[Round "4.4"]
[White "Frank, Emanuel"]
[Black "Kruckenhauser, Arthur"]
[Result "0-1"]
[ECO "A62"]
[WhiteElo "2160"]
[BlackElo "2303"]
[Annotator "ChessBase"]
[PlyCount "94"]
[EventDate "2022.07.09"]
[EventType "swiss"]
[EventCountry "AUT"]
[SourceTitle "playchess.com"]
[Source "ChessBase"]
[SourceQuality "1"]
[TimeControl "40/5400+30:1800+30"]

1. d4 {[%emt 0:00:03]} Nf6 {[%emt 0:00:15]} 2. c4 {[%emt 0:00:06]} e6 {[%emt 0:00:07]} 3. g3 {[%emt 0:00:16]} c5 {[%emt 0:01:27]} 4. d5 {[%emt 0:00:05]} exd5 {[%emt 0:00:22]} 5. cxd5 {[%emt 0:00:05]} d6 {[%emt 0:00:03]} 6. Nc3 {[%emt 0:00:08]} g6 {[%emt 0:00:27]} 7. Bg2 {[%emt 0:00:17]} Bg7 {[%emt 0:00:05]} 8. Nf3 {[%emt 0:00:04]} O-O {[%emt 0:00:05]} 9. O-O {[%emt 0:00:04]} Re8 {[%emt 0:00:19]} 10. a4 {[%emt 0:00:51]} a6 {[%emt 0:05:00]} 11. h3 {[%emt 0:03:12]} Nbd7 {[%emt 0:00:38]} 12. Bf4 {[%emt 0:00:25]} Qc7 {[%emt 0:06:55]} 13. Rc1 {[%emt 0:03:33]} Nh5 {[%emt 0:03:29]} 14. Bd2 {[%emt 0:02:51]} Rb8 {[%emt 0:08:20]} 15. Re1 {[%emt 0:07:56]} Ne5 {[%emt 0:10:25]} 16. Nxe5 {[%emt 0:07:29]} Bxe5 {[%emt 0:00:45]} 17. e4 {[%emt 0:25:30]} b5 {[%emt 0:05:45]} 18. axb5 {[%emt 0:01:34]} axb5 {[%emt 0:00:07]} 19. b4 {[%emt 0:00:37]} c4 {[%emt 0:11:17]} 20. Ne2 {[%emt 0:06:16]} Qa7 {[%emt 0:09:49]} 21. Be3 {[%emt 0:08:22]} Qa3 {[%emt 0:00:46]} 22. g4 {[%emt 0:06:23]} Ng7 {[%emt 0:10:38]} 23. Nd4 {[%emt 0:01:34]} Bd7 {[%emt 0:02:26]} 24. f4 {[%emt 0:03:24]} Bf6 {[%emt 0:02:06]} 25. g5 {[%emt 0:06:15]} Bxd4 {[%emt 0:02:31]} 26. Qxd4 {[%emt 0:00:20]} Qxb4 {[%emt 0:00:31]} 27. Rb1 {[%emt 0:05:10]} Qa3 {[%emt 0:03:25]} 28. Bc1 {[%emt 0:02:44]} Qc5 {[%emt 0:01:44]} 29. Qxc5 {[%emt 0:00:17]} dxc5 {[%emt 0:00:03]} 30. Be3 {[%emt 0:00:23]} Rec8 {[%emt 0:01:33]} 31. Rec1 {[%emt 0:00:43]} Ra8 {[%emt 0:01:12]} 32. Rc3 {[%emt 0:03:06]} Ra2 {[%emt 0:01:24]} 33. Bf3 {[%emt 0:01:03]} Ne8 {[%emt 0:02:56]} 34. e5 {[%emt 0:04:11]} Nc7 {[%emt 0:02:05]} 35. Rd1 {[%emt 0:00:44]} Na8 {[%emt 0:03:14]} 36. e6 {[%emt 0:01:25]} fxe6 {[%emt 0:00:41]} 37. Bg4 {[%emt 0:00:06]} Kf7 {[%emt 0:00:46]} 38. Rb1 {[%emt 0:01:19]} Nc7 {[%emt 0:00:50]} 39. dxe6+ {[%emt 0:00:22]} Bxe6 {[%emt 0:00:03]} 40. Bxe6+ {[%emt 0:00:44]} Kxe6 {[%emt 0:00:07]} 41. Bxc5 {[%emt 0:03:33]} Nd5 {[%emt 0:03:01]} 42. Ra3 {[%emt 0:01:50]} Rxa3 {[%emt 0:00:10]} 43. Bxa3 {[%emt 0:00:00]} b4 {[%emt 0:00:55]} 44. Bxb4 {[%emt 0:00:58]} Nxb4 {[%emt 0:00:04]} 45. Rxb4 {[%emt 0:00:04]} c3 {[%emt 0:00:03]} 46. Rb1 {[%emt 0:00:05]} c2 {[%emt 0:00:02]} 47. Rc1 {[%emt 0:00:03]} Kf5 {[%emt 0:00:02]} 0-1

[Event "41st Jacques-Lemans-Open 2022"]
[Site "St. Veit/Glan"]
[Date "2022.07.11"]
[Round "4.5"]
[White "Huber, Benedikt"]
[Black "Sucher, Johannes"]
[Result "1-0"]
[ECO "D11"]
[WhiteElo "2289"]
[BlackElo "2164"]
[Annotator "ChessBase"]
[PlyCount "83"]
[EventDate "2022.07.09"]
[EventType "swiss"]
[EventCountry "AUT"]
[SourceTitle "playchess.com"]
[Source "ChessBase"]
[SourceQuality "1"]
[TimeControl "40/5400+30:1800+30"]

1. d4 {[%emt 0:00:03]} d5 {[%emt 0:00:17]} 2. c4 {[%emt 0:00:08]} c6 {[%emt 0:00:33]} 3. Nf3 {[%emt 0:00:24]} Nf6 {[%emt 0:00:16]} 4. g3 {[%emt 0:00:15]} Bf5 {[%emt 0:01:38]} 5. Nc3 {[%emt 0:00:09]} e6 {[%emt 0:02:45]} 6. Qb3 {[%emt 0:00:07]} Qb6 {[%emt 0:02:37]} 7. c5 {[%emt 0:00:07]} Qxb3 {[%emt 0:05:02]} 8. axb3 {[%emt 0:00:05]} Na6 {[%emt 0:00:26]} 9. Bf4 {[%emt 0:34:49]} Be7 {[%emt 0:16:57]} 10. Ra4 {[%emt 0:14:14]} O-O {[%emt 0:12:19]} 11. Ne5 {[%emt 0:05:23]} Nb8 {[%emt 0:06:40]} 12. b4 {[%emt 0:00:14]} Nfd7 {[%emt 0:02:23]} 13. Nf3 {[%emt 0:08:21]} Nf6 {[%emt 0:07:49]} 14. Nd2 {[%emt 0:06:03]} Nbd7 {[%emt 0:05:08]} 15. b5 {[%emt 0:00:14]} Nh5 {[%emt 0:01:33]} 16. b4 {[%emt 0:08:01]} Nxf4 {[%emt 0:06:47]} 17. gxf4 {[%emt 0:00:05]} cxb5 {[%emt 0:00:52]} 18. Nxb5 {[%emt 0:00:05]} a6 {[%emt 0:00:06]} 19. Nc3 {[%emt 0:00:19]} f6 {[%emt 0:06:24]} 20. e3 g5 {[%emt 0:00:58]} 21. fxg5 {[%emt 0:02:39]} fxg5 {[%emt 0:00:06]} 22. Be2 {[%emt 0:00:20]} Kh8 {[%emt 0:02:53]} 23. O-O {[%emt 0:03:15]} g4 {[%emt 0:03:54]} 24. Rfa1 {[%emt 0:03:47]} Rad8 {[%emt 0:02:49]} 25. Nf1 {[%emt 0:02:02]} h5 {[%emt 0:00:49]} 26. b5 {[%emt 0:01:02]} axb5 {[%emt 0:00:11]} 27. Bxb5 {[%emt 0:00:14]} Bf6 {[%emt 0:00:39]} 28. Rc1 {[%emt 0:03:12]} e5 {[%emt 0:06:30]} 29. Nxd5 {[%emt 0:02:57]} Bh4 {[%emt 0:00:10]} 30. Ng3 {[%emt 0:00:39]} exd4 {[%emt 0:00:33]} 31. Rxd4 {[%emt 0:01:00]} Ne5 {[%emt 0:00:15]} 32. Be2 {[%emt 0:01:29]} Bg6 {[%emt 0:02:00]} 33. Nf4 {[%emt 0:01:24]} Rxd4 {[%emt 0:03:02]} 34. Nxg6+ {[%emt 0:00:06]} Nxg6 {[%emt 0:00:06]} 35. exd4 {[%emt 0:00:05]} Nf4 {[%emt 0:00:05]} 36. Bf1 {[%emt 0:00:14]} Rd8 {[%emt 0:01:14]} 37. Rb1 {[%emt 0:01:21]} Rd7 {[%emt 0:00:46]} 38. Rb6 {[%emt 0:00:22]} Kh7 {[%emt 0:00:24]} 39. Nf5 {[%emt 0:00:23]} Bd8 {[%emt 0:00:20]} 40. Rh6+ {[%emt 0:00:43]} Kg8 {[%emt 0:00:09]} 41. Bc4+ {[%emt 0:30:05]} Nd5 {[%emt 0:31:20]} 42. Rd6 {[%emt 0:00:23]} 1-0

[Event "41st Jacques-Lemans-Open 2022"]
[Site "St. Veit/Glan"]
[Date "2022.07.11"]
[Round "4.6"]
[White "Hofstadler, Mario"]
[Black "Sandhoefner, Florian"]
[Result "1/2-1/2"]
[ECO "D14"]
[WhiteElo "2123"]
[BlackElo "2289"]
[Annotator "ChessBase"]
[PlyCount "22"]
[EventDate "2022.07.09"]
[EventType "swiss"]
[EventCountry "AUT"]
[SourceTitle "playchess.com"]
[Source "ChessBase"]
[SourceQuality "1"]
[TimeControl "40/5400+30:1800+30"]

1. d4 {[%emt 0:00:04]} Nf6 {[%emt 0:00:05]} 2. Nf3 {[%emt 0:00:47]} d5 {[%emt 0:00:06]} 3. c4 {[%emt 0:00:08]} c6 {[%emt 0:00:07]} 4. cxd5 {[%emt 0:00:15]} cxd5 {[%emt 0:00:02]} 5. Nc3 {[%emt 0:00:12]} Nc6 {[%emt 0:00:02]} 6. Bf4 {[%emt 0:00:10]} Bf5 {[%emt 0:00:05]} 7. e3 {[%emt 0:00:22]} e6 {[%emt 0:00:01]} 8. Qb3 {[%emt 0:00:13]} Bb4 {[%emt 0:00:09]} 9. Bb5 {[%emt 0:00:32]} O-O {[%emt 0:00:47]} 10. O-O {[%emt 0:00:08]} Bxc3 {[%emt 0:01:05]} 11. Bxc6 {[%emt 0:02:04]} bxc6 {[%emt 0:00:50]} 1/2-1/2

[Event "41st Jacques-Lemans-Open 2022"]
[Site "St. Veit/Glan"]
[Date "2022.07.11"]
[Round "4.7"]
[White "Ernst, Robert"]
[Black "Moeller, Dustin"]
[Result "1-0"]
[ECO "D35"]
[WhiteElo "2001"]
[BlackElo "2237"]
[Annotator "ChessBase"]
[PlyCount "67"]
[EventDate "2022.07.09"]
[EventType "swiss"]
[EventCountry "AUT"]
[SourceTitle "playchess.com"]
[Source "ChessBase"]
[SourceQuality "1"]
[TimeControl "40/5400+30:1800+30"]

1. d4 {[%emt 0:00:05]} d5 {[%emt 0:00:17]} 2. c4 {[%emt 0:00:14]} e6 {[%emt 0:00:07]} 3. Nc3 {[%emt 0:00:16]} Nf6 {[%emt 0:00:08]} 4. cxd5 {[%emt 0:00:15]} exd5 {[%emt 0:00:07]} 5. Bg5 {[%emt 0:00:17]} c6 {[%emt 0:00:08]} 6. e3 {[%emt 0:00:15]} h6 {[%emt 0:00:07]} 7. Bh4 {[%emt 0:00:23]} Be7 {[%emt 0:00:09]} 8. Bd3 {[%emt 0:00:26]} O-O {[%emt 0:00:09]} 9. Qc2 {[%emt 0:00:54]} Re8 {[%emt 0:00:09]} 10. Nge2 {[%emt 0:00:30]} Nbd7 {[%emt 0:00:08]} 11. O-O {[%emt 0:00:55]} a5 {[%emt 0:00:04]} 12. f3 {[%emt 0:13:14]} b5 {[%emt 0:00:06]} 13. e4 {[%emt 0:11:51]} b4 {[%emt 0:00:06]} 14. e5 {[%emt 0:10:14]} bxc3 {[%emt 0:03:39]} 15. exf6 {[%emt 0:00:33]} Bxf6 {[%emt 0:00:22]} 16. Bxf6 {[%emt 0:00:12]} Qxf6 {[%emt 0:01:27]} 17. bxc3 {[%emt 0:01:36]} Ba6 {[%emt 0:02:13]} 18. Rab1 {[%emt 0:02:15]} Qe7 {[%emt 0:02:35]} 19. Bxa6 {[%emt 0:01:04]} Rxa6 {[%emt 0:03:38]} 20. Ng3 {[%emt 0:03:56]} Rb6 {[%emt 0:20:27]} 21. Rbe1 {[%emt 0:13:22]} Qxe1 {[%emt 0:00:24]} 22. Rxe1 {[%emt 0:00:02]} Rxe1+ {[%emt 0:00:06]} 23. Kf2 {[%emt 0:00:14]} Reb1 {[%emt 0:14:32]} 24. Qa4 {[%emt 0:00:58]} R6b5 {[%emt 0:00:50]} 25. Nf5 {[%emt 0:02:09]} Nb6 {[%emt 0:03:01]} 26. Qa3 {[%emt 0:00:25]} Nc4 {[%emt 0:08:29]} 27. Qe7 {[%emt 0:01:12]} R5b2+ {[%emt 0:00:05]} 28. Kg3 {[%emt 0:00:21]} Rg1 {[%emt 0:00:07]} 29. Qd8+ {[%emt 0:06:56]} Kh7 {[%emt 0:00:09]} 30. Ne7 {[%emt 0:00:16]} Rbxg2+ {[%emt 0:07:52]} 31. Kf4 {[%emt 0:03:35]} g5+ {[%emt 0:01:54]} 32. Kf5 {[%emt 0:00:14]} Ne3+ {[%emt 0:01:06]} 33. Kf6 {[%emt 0:00:32]} Ng4+ {[%emt 0:00:39]} 34. Kxf7 {[%emt 0:00:24]} 1-0

[Event "41st Jacques-Lemans-Open 2022"]
[Site "St. Veit/Glan"]
[Date "2022.07.11"]
[Round "4.8"]
[White "Lerch, Johannes"]
[Black "Feinig, Mario"]
[Result "1/2-1/2"]
[ECO "A04"]
[WhiteElo "2222"]
[BlackElo "2141"]
[Annotator "ChessBase"]
[PlyCount "51"]
[EventDate "2022.07.09"]
[EventType "swiss"]
[EventCountry "AUT"]
[SourceTitle "playchess.com"]
[Source "ChessBase"]
[SourceQuality "1"]
[TimeControl "40/5400+30:1800+30"]

1. Nf3 {[%emt 0:00:03]} f5 {[%emt 0:00:05]} 2. d3 {[%emt 0:00:05]} Nc6 {[%emt 0:00:14]} 3. e4 {[%emt 0:00:08]} e5 {[%emt 0:00:06]} 4. Nc3 {[%emt 0:00:18]} Nf6 {[%emt 0:00:16]} 5. exf5 {[%emt 0:00:16]} d5 {[%emt 0:00:15]} 6. d4 {[%emt 0:00:15]} exd4 {[%emt 0:11:46]} 7. Nxd4 {[%emt 0:00:16]} Nxd4 {[%emt 0:00:02]} 8. Qxd4 {[%emt 0:00:07]} Bxf5 {[%emt 0:00:07]} 9. Bg5 {[%emt 0:01:03]} Bxc2 {[%emt 0:01:01]} 10. Kd2 {[%emt 0:45:33]} Bg6 {[%emt 0:22:06]} 11. Re1+ {[%emt 0:00:08]} Kf7 {[%emt 0:01:04]} 12. Kc1 {[%emt 0:01:49]} c6 {[%emt 0:04:29]} 13. h4 {[%emt 0:02:57]} Qb6 {[%emt 0:14:49]} 14. Qf4 {[%emt 0:04:23]} h5 {[%emt 0:12:39]} 15. Rh3 {[%emt 0:03:13]} Bc5 {[%emt 0:10:45]} 16. Rf3 {[%emt 0:09:06]} Bd4 {[%emt 0:01:06]} 17. Bd3 {[%emt 0:09:53]} Bxd3 {[%emt 0:00:56]} 18. Rxd3 {[%emt 0:00:04]} Bxc3 {[%emt 0:06:51]} 19. Rxc3 {[%emt 0:00:10]} Rae8 {[%emt 0:00:10]} 20. Rce3 {[%emt 0:02:46]} Rxe3 {[%emt 0:02:08]} 21. Rxe3 {[%emt 0:00:43]} Re8 {[%emt 0:00:01]} 22. Rxe8 {[%emt 0:01:37]} Kxe8 {[%emt 0:00:02]} 23. Bxf6 {[%emt 0:01:54]} gxf6 {[%emt 0:00:01]} 24. Qxf6 {[%emt 0:00:15]} Qc5+ {[%emt 0:01:33]} 25. Kb1 {[%emt 0:02:10]} Qc4 {[%emt 0:03:28]} 26. g3 {[%emt 0:05:10]} 1/2-1/2

[Event "41st Jacques-Lemans-Open 2022"]
[Site "St. Veit/Glan"]
[Date "2022.07.11"]
[Round "4.9"]
[White "Hng, Mei-En Emmanuelle"]
[Black "Ofner, Maximilian"]
[Result "1/2-1/2"]
[ECO "B21"]
[WhiteElo "1997"]
[BlackElo "2194"]
[Annotator "ChessBase"]
[PlyCount "100"]
[EventDate "2022.07.09"]
[EventType "swiss"]
[EventCountry "AUT"]
[SourceTitle "playchess.com"]
[Source "ChessBase"]
[SourceQuality "1"]
[TimeControl "40/5400+30:1800+30"]

1. e4 {[%emt 0:00:06]} c5 {[%emt 0:00:08]} 2. d4 {[%emt 0:01:09]} cxd4 {[%emt 0:00:10]} 3. c3 {[%emt 0:00:05]} Nf6 {[%emt 0:00:13]} 4. e5 {[%emt 0:00:19]} Nd5 {[%emt 0:00:06]} 5. Qxd4 {[%emt 0:00:14]} e6 {[%emt 0:00:16]} 6. Bd3 {[%emt 0:00:17]} Nc6 {[%emt 0:00:39]} 7. Qe4 {[%emt 0:00:13]} f5 {[%emt 0:00:40]} 8. exf6 {[%emt 0:00:29]} Nxf6 {[%emt 0:00:08]} 9. Qh4 {[%emt 0:00:19]} d5 {[%emt 0:05:17]} 10. Bg6+ {[%emt 0:02:03]} hxg6 {[%emt 0:00:07]} 11. Qxh8 {[%emt 0:00:18]} e5 {[%emt 0:02:49]} 12. Qh4 {[%emt 0:25:37]} Bf5 {[%emt 0:06:05]} 13. Nf3 {[%emt 0:07:18]} Qc7 {[%emt 0:20:09]} 14. O-O {[%emt 0:05:53]} O-O-O {[%emt 0:00:35]} 15. Bg5 {[%emt 0:04:45]} Bd6 {[%emt 0:14:04]} 16. Nbd2 {[%emt 0:11:27]} Kb8 {[%emt 0:03:44]} 17. Rfe1 {[%emt 0:03:25]} Qc8 {[%emt 0:06:36]} 18. Qa4 {[%emt 0:08:24]} Rh8 {[%emt 0:10:10]} 19. h4 {[%emt 0:07:31]} Bh3 {[%emt 0:11:50]} 20. Re3 {[%emt 0:12:14]} e4 {[%emt 0:03:33]} 21. Nd4 {[%emt 0:01:32]} Bd7 {[%emt 0:00:06]} 22. Nb5 {[%emt 0:01:40]} Be5 {[%emt 0:04:57]} 23. f4 {[%emt 0:01:41]} a6 {[%emt 0:02:30]} 24. fxe5 {[%emt 0:00:54]} axb5 {[%emt 0:00:02]} 25. Qa3 {[%emt 0:00:42]} b4 {[%emt 0:00:35]} 26. cxb4 {[%emt 0:00:16]} Ng4 {[%emt 0:01:19]} 27. Bf4 {[%emt 0:01:02]} Be6 {[%emt 0:01:03]} 28. b5 {[%emt 0:01:46]} Nxe3 {[%emt 0:02:03]} 29. Bxe3 {[%emt 0:00:02]} d4 {[%emt 0:00:42]} 30. bxc6 {[%emt 0:00:37]} dxe3 {[%emt 0:00:15]} 31. cxb7 {[%emt 0:01:11]} Qxb7 {[%emt 0:01:25]} 32. Qxe3 {[%emt 0:00:17]} Rxh4 {[%emt 0:00:43]} 33. Rf1 {[%emt 0:00:55]} Qa7 {[%emt 0:01:00]} 34. Qxa7+ {[%emt 0:01:00]} Kxa7 {[%emt 0:00:01]} 35. Re1 {[%emt 0:01:24]} Bd5 {[%emt 0:00:10]} 36. Kf2 {[%emt 0:00:16]} Rg4 {[%emt 0:00:51]} 37. g3 {[%emt 0:00:42]} Kb6 {[%emt 0:00:08]} 38. b3 {[%emt 0:00:34]} Kc5 {[%emt 0:00:28]} 39. Nf1 {[%emt 0:00:42]} Rg5 {[%emt 0:01:22]} 40. Rc1+ {[%emt 0:00:25]} Kd4 {[%emt 0:01:54]} 41. Ne3 {[%emt 0:03:15]} Be6 {[%emt 0:02:06]} 42. Rd1+ {[%emt 0:11:08]} Kxe5 {[%emt 0:02:18]} 43. Nc4+ {[%emt 0:00:18]} Bxc4 {[%emt 0:05:34]} 44. bxc4 {[%emt 0:00:01]} Rf5+ {[%emt 0:00:08]} 45. Ke2 {[%emt 0:04:24]} Rf3 {[%emt 0:00:19]} 46. Rd5+ {[%emt 0:00:45]} Ke6 {[%emt 0:00:23]} 47. g4 {[%emt 0:00:41]} Ra3 {[%emt 0:04:00]} 48. g5 {[%emt 0:00:19]} Rc3 {[%emt 0:08:16]} 49. Rc5 {[%emt 0:01:23]} Kd6 {[%emt 0:00:08]} 50. Rd5+ {[%emt 0:02:34]} Ke6 {[%emt 0:01:53]} 1/2-1/2

[Event "41st Jacques-Lemans-Open 2022"]
[Site "St. Veit/Glan"]
[Date "2022.07.11"]
[Round "4.10"]
[White "Mitscherling, Andreas"]
[Black "Schwab, Rene"]
[Result "0-1"]
[ECO "A04"]
[WhiteElo "2165"]
[BlackElo "2124"]
[Annotator "ChessBase"]
[PlyCount "158"]
[EventDate "2022.07.09"]
[EventType "swiss"]
[EventCountry "AUT"]
[SourceTitle "playchess.com"]
[Source "ChessBase"]
[SourceQuality "1"]
[TimeControl "40/5400+30:1800+30"]

1. Nf3 {[%emt 0:00:03]} c6 {[%emt 0:00:06]} 2. d4 {[%emt 0:00:18]} d5 {[%emt 0:00:05]} 3. Bf4 {[%emt 0:00:18]} Na6 {[%emt 0:05:15]} 4. e3 {[%emt 0:00:51]} Bg4 {[%emt 0:01:10]} 5. h3 {[%emt 0:01:00]} Bxf3 {[%emt 0:00:05]} 6. Qxf3 {[%emt 0:00:17]} Nf6 {[%emt 0:01:22]} 7. Nd2 {[%emt 0:03:17]} Nc7 {[%emt 0:02:31]} 8. Bd3 {[%emt 0:01:25]} Ne6 {[%emt 0:01:09]} 9. Bh2 {[%emt 0:03:37]} g6 {[%emt 0:00:28]} 10. O-O {[%emt 0:00:36]} Bg7 {[%emt 0:00:16]} 11. c4 {[%emt 0:01:13]} O-O {[%emt 0:01:18]} 12. Qe2 {[%emt 0:00:51]} c5 {[%emt 0:00:49]} 13. dxc5 {[%emt 0:03:08]} Nxc5 {[%emt 0:00:26]} 14. Bc2 {[%emt 0:09:18]} Rc8 {[%emt 0:04:42]} 15. Be5 {[%emt 0:01:19]} Ncd7 {[%emt 0:04:41]} 16. Bc3 {[%emt 0:00:55]} dxc4 {[%emt 0:09:14]} 17. Nxc4 {[%emt 0:00:13]} Qc7 {[%emt 0:00:40]} 18. Nd2 {[%emt 0:03:49]} Nd5 {[%emt 0:04:23]} 19. Bxg7 {[%emt 0:00:10]} Kxg7 {[%emt 0:00:19]} 20. Bb3 {[%emt 0:00:37]} N7f6 {[%emt 0:02:28]} 21. Nf3 {[%emt 0:01:44]} Rfd8 {[%emt 0:04:03]} 22. Rfd1 {[%emt 0:00:20]} e6 {[%emt 0:10:18]} 23. Rd4 {[%emt 0:01:27]} Ne7 {[%emt 0:01:57]} 24. Rc4 {[%emt 0:03:30]} Qb6 {[%emt 0:01:20]} 25. Rxc8 {[%emt 0:01:50]} Rxc8 {[%emt 0:00:45]} 26. Rd1 {[%emt 0:00:36]} Rd8 {[%emt 0:06:22]} 27. Nd4 {[%emt 0:00:40]} Nf5 {[%emt 0:07:38]} 28. Nxf5+ {[%emt 0:04:28]} gxf5 {[%emt 0:00:19]} 29. Rxd8 {[%emt 0:00:51]} Qxd8 {[%emt 0:00:04]} 30. g4 {[%emt 0:05:12]} fxg4 {[%emt 0:00:40]} 31. hxg4 {[%emt 0:00:06]} Qa5 {[%emt 0:02:33]} 32. f4 {[%emt 0:02:55]} Qc5 {[%emt 0:01:35]} 33. g5 {[%emt 0:02:12]} Nd5 {[%emt 0:00:31]} 34. Bxd5 {[%emt 0:00:20]} Qxd5 {[%emt 0:00:23]} 35. a3 {[%emt 0:14:29]} Qe4 {[%emt 0:06:14]} 36. Kf2 {[%emt 0:00:49]} e5 {[%emt 0:02:22]} 37. Qf3 {[%emt 0:01:33]} Qc2+ {[%emt 0:02:13]} 38. Kg3 {[%emt 0:12:15]} exf4+ {[%emt 0:00:43]} 39. exf4 {[%emt 0:00:22]} Qxb2 {[%emt 0:00:26]} 40. Kg4 {[%emt 0:01:32]} h6 {[%emt 0:09:41]} 41. gxh6+ {[%emt 0:35:19]} Kxh6 {[%emt 0:30:15]} 42. Qd5 {[%emt 0:02:38]} Qg7+ {[%emt 0:02:40]} 43. Kf5 {[%emt 0:08:30]} Qg6+ {[%emt 0:02:32]} 44. Ke5 {[%emt 0:00:07]} Kg7 {[%emt 0:02:23]} 45. Qxb7 {[%emt 0:00:00]} Qe6+ {[%emt 0:00:00]} 46. Kd4 {[%emt 0:00:00]} Qd6+ {[%emt 0:00:00]} 47. Ke4 {[%emt 0:00:00]} Qxa3 {[%emt 0:00:00]} 48. Qc7 {[%emt 0:00:00]} Qa1 {[%emt 0:00:00]} 49. Qc5 {[%emt 0:00:00]} Qh1+ {[%emt 0:00:00]} 50. Ke5 {[%emt 0:00:00]} Qe1+ {[%emt 0:00:00]} 51. Kf5 {[%emt 0:00:00]} Qe6+ {[%emt 0:00:00]} 52. Kg5 {[%emt 0:00:00]} Qg6+ {[%emt 0:00:00]} 53. Kh4 {[%emt 0:00:00]} Qb6 {[%emt 0:00:00]} 54. Qg5+ {[%emt 0:00:00]} Kf8 {[%emt 0:00:00]} 55. Qd5 {[%emt 0:00:00]} Qf6+ {[%emt 0:00:00]} 56. Kg3 {[%emt 0:00:00]} a6 {[%emt 0:00:00]} 57. Qa8+ {[%emt 0:00:00]} Kg7 {[%emt 0:00:00]} 58. Qa7 {[%emt 0:01:14]} Qg6+ {[%emt 0:00:00]} 59. Kf3 {[%emt 0:01:03]} Qd3+ {[%emt 0:00:00]} 60. Kg4 {[%emt 0:00:49]} Qg6+ {[%emt 0:00:00]} 61. Kf3 {[%emt 0:00:44]} Qd6 {[%emt 0:00:00]} 62. Kg4 {[%emt 0:01:13]} Kg6 {[%emt 0:01:01]} 63. Kf3 {[%emt 0:02:57]} Qd5+ {[%emt 0:01:15]} 64. Ke3 {[%emt 0:01:41]} a5 {[%emt 0:01:07]} 65. Kf2 {[%emt 0:02:52]} Kf5 {[%emt 0:01:23]} 66. Qc7 {[%emt 0:00:57]} Qd4+ {[%emt 0:03:16]} 67. Kf3 {[%emt 0:01:05]} Qe4+ {[%emt 0:00:36]} 68. Kg3 {[%emt 0:00:35]} Qe3+ {[%emt 0:00:37]} 69. Kg2 {[%emt 0:00:36]} Qe2+ {[%emt 0:00:55]} 70. Kg1 {[%emt 0:00:59]} Qg4+ {[%emt 0:00:42]} 71. Kh1 {[%emt 0:00:44]} Qh5+ {[%emt 0:01:06]} 72. Kg1 {[%emt 0:00:41]} Kg4 {[%emt 0:00:57]} 73. Kf2 {[%emt 0:01:00]} Qh2+ {[%emt 0:00:52]} 74. Ke3 {[%emt 0:00:38]} Qg3+ {[%emt 0:00:38]} 75. Ke2 {[%emt 0:00:51]} Qf3+ {[%emt 0:00:55]} 76. Ke1 {[%emt 0:00:34]} Qe3+ {[%emt 0:00:57]} 77. Kd1 {[%emt 0:00:31]} Qb3+ {[%emt 0:00:50]} 78. Ke2 {[%emt 0:00:34]} a4 {[%emt 0:00:40]} 79. Qe5 {[%emt 0:00:35]} Qe6 {[%emt 0:00:50]} 0-1

[Event "41st Jacques-Lemans-Open 2022"]
[Site "St. Veit/Glan"]
[Date "2022.07.11"]
[Round "4.11"]
[White "Koelber, Daniel"]
[Black "Higatsberger, Michael"]
[Result "1-0"]
[ECO "B53"]
[WhiteElo "2176"]
[BlackElo "2021"]
[Annotator "ChessBase"]
[PlyCount "75"]
[EventDate "2022.07.09"]
[EventType "swiss"]
[EventCountry "AUT"]
[SourceTitle "playchess.com"]
[Source "ChessBase"]
[SourceQuality "1"]
[TimeControl "40/5400+30:1800+30"]

1. e4 {[%emt 0:00:04]} c5 {[%emt 0:00:09]} 2. Nf3 {[%emt 0:00:06]} d6 {[%emt 0:00:06]} 3. d4 {[%emt 0:00:29]} cxd4 {[%emt 0:00:05]} 4. Qxd4 {[%emt 0:00:22]} Nc6 {[%emt 0:00:11]} 5. Bb5 {[%emt 0:00:12]} Bd7 {[%emt 0:00:05]} 6. Bxc6 {[%emt 0:00:12]} Bxc6 {[%emt 0:00:06]} 7. Nc3 {[%emt 0:00:05]} e5 {[%emt 0:08:34]} 8. Qd3 {[%emt 0:04:25]} Rc8 {[%emt 0:03:01]} 9. O-O {[%emt 0:00:54]} h6 {[%emt 0:00:30]} 10. Be3 {[%emt 0:01:40]} a6 {[%emt 0:02:46]} 11. Rfd1 {[%emt 0:12:39]} Nf6 {[%emt 0:01:05]} 12. Nd2 {[%emt 0:15:35]} b5 {[%emt 0:04:49]} 13. a4 {[%emt 0:07:12]} b4 {[%emt 0:01:31]} 14. Nd5 {[%emt 0:00:06]} Bxd5 {[%emt 0:12:34]} 15. exd5 {[%emt 0:00:06]} Ra8 {[%emt 0:09:12]} 16. a5 {[%emt 0:03:22]} Be7 {[%emt 0:03:23]} 17. Nc4 {[%emt 0:02:14]} Nd7 {[%emt 0:01:03]} 18. Qb3 {[%emt 0:04:55]} Rb8 {[%emt 0:04:49]} 19. Bb6 {[%emt 0:07:29]} Qc8 {[%emt 0:07:09]} 20. Qxb4 {[%emt 0:02:12]} O-O {[%emt 0:02:58]} 21. b3 {[%emt 0:05:49]} Rd8 {[%emt 0:04:56]} 22. Qa4 {[%emt 0:04:43]} Re8 {[%emt 0:06:22]} 23. Qc6 {[%emt 0:01:14]} Qb7 {[%emt 0:01:00]} 24. Nxd6 {[%emt 0:05:13]} Bxd6 {[%emt 0:00:07]} 25. Qxd6 {[%emt 0:00:03]} Nxb6 {[%emt 0:00:11]} 26. axb6 {[%emt 0:00:08]} Qxb6 {[%emt 0:00:07]} 27. Rxa6 {[%emt 0:00:20]} Qb5 {[%emt 0:01:08]} 28. Rc6 {[%emt 0:07:50]} Qe2 {[%emt 0:01:16]} 29. Rf1 {[%emt 0:00:48]} Ra8 {[%emt 0:05:52]} 30. Qb4 {[%emt 0:01:57]} e4 {[%emt 0:01:32]} 31. Re1 {[%emt 0:00:45]} Qh5 {[%emt 0:00:47]} 32. Qd4 {[%emt 0:00:18]} f5 {[%emt 0:03:10]} 33. d6 {[%emt 0:02:38]} Qg5 {[%emt 0:02:03]} 34. d7 {[%emt 0:00:12]} Red8 {[%emt 0:00:27]} 35. h3 {[%emt 0:02:07]} Kh7 {[%emt 0:00:28]} 36. Rd1 {[%emt 0:01:18]} Qh5 {[%emt 0:04:12]} 37. Rc5 {[%emt 0:02:09]} Qg6 {[%emt 0:06:54]} 38. Qd5 {[%emt 0:01:40]} 1-0